fUSD/lending_fUSD_20260315
["ID","MTS","AMOUNT","RATE_DAILY","PERIOD"]
[408381018,1773533446138,-2615.92995068,0.0002,2]
[408381019,1773533446149,-13286.98274416,0.0002,2]
[408381020,1773533446205,-6366.76819138,0.0002,2]
[408381021,1773533446216,-3466.50685,0.0002,2]
[408381022,1773533446294,-7880.93505865,0.00015028,2]
[408381023,1773533446304,-1222954.72205406,0.0002,2]
[408381024,1773533446313,-355.85,0.0002,2]
[408381025,1773533446322,-2388.78719432,0.0002,30]
[408381026,1773533446331,-240115.94815556,0.0002,2]
[408381027,1773533446341,-11116.60883131,0.0002,2]
[408381028,1773533446351,-2957.04645373,0.0002,7]
[408381029,1773533446361,-532.86230968,0.0002,7]
[408381030,1773533446371,-299.99999801,0.0002,2]
[408381031,1773533446381,-151.0,0.0002,2]
[408381032,1773533446391,-151.0,0.0002,2]
[408381033,1773533446400,-203.227023,0.0002,2]
[408381034,1773533446411,-5000.0,0.0002,2]
[408381035,1773533446420,-3742.720409,0.0002,2]
[408381036,1773533446430,-209.192021,0.00020001,7]
[408381037,1773533446440,-1594.0,0.00020101,5]
[408381038,1773533446450,-4609.0,0.00020109,2]
[408381039,1773533446459,-759.0,0.00020173,2]
[408381040,1773533446468,-759.0,0.00020175,2]
[408381041,1773533446477,-759.0,0.00020185,2]
[408381042,1773533446486,-759.0,0.00020185,2]
[408381043,1773533446495,-759.0,0.00020208,2]
[408381044,1773533446504,-2099.23018733,0.00020243,8]
[408381045,1773533446514,-759.0,0.00020285,2]
[408381046,1773533446523,-184.0,0.00020291,7]
[408381047,1773533446533,-759.0,0.00020441,2]
[408381048,1773533446543,-759.0,0.00020471,2]
[408381049,1773533446553,-156.0,0.00020474,3]
[408381050,1773533446563,-158.51,0.00020548,2]
[408381051,1773533446572,-151.77,0.00020576,2]
[408381052,1773533446582,-388.2,0.000206,7]
[408381053,1773533446591,-213.51,0.000206,7]
[408381054,1773533446603,-759.0,0.00020659,2]
[408381055,1773533446614,-759.0,0.00020688,2]
[408381056,1773533446624,-759.0,0.00020713,2]
[408381057,1773533446634,-759.0,0.00020733,2]
[408381058,1773533446644,-759.0,0.00020756,2]
[408381059,1773533446655,-500.0,0.00020822,2]
[408381060,1773533446664,-400.0,0.00021,2]
[408381061,1773533446674,-1199.82709888,0.00021,2]
[408381062,1773533446682,-198.04144275,0.00021,2]
[408381063,1773533446691,-1043.0,0.00021153,2]
[408381064,1773533446701,-1260.0,0.00021153,2]
[408381065,1773533446710,-150.0,0.00021153,2]
[408381066,1773533446718,-3010.164258,0.000215,2]
[408381067,1773533446727,-223.43211581,0.000215,2]
[408381068,1773533446736,-194.1,0.000216,30]
[408381069,1773533446746,-200.37,0.00021742,2]
[408381070,1773533446755,-150.0,0.00021754,2]
[408381071,1773533446763,-150.0,0.00021754,2]
[408381072,1773533446772,-500.0,0.00021754,2]
[408381073,1773533446782,-500.0,0.00021754,2]
[408381074,1773533446791,-500.0,0.00021754,2]
[408381075,1773533446800,-150.0,0.00021778,2]
[408381076,1773533446809,-150.0,0.00021778,2]
[408381077,1773533446818,-250.0,0.00021809,2]
[408381078,1773533446827,-150.0,0.00021809,2]
[408381079,1773533446836,-500.0,0.00021809,2]
[408381080,1773533446845,-500.0,0.00021809,2]
[408381081,1773533446854,-500.0,0.00021809,2]
[408381082,1773533446865,-506.0,0.00021846,6]
[408381083,1773533446874,-150.0,0.00021864,2]
[408381084,1773533446884,-500.0,0.00021864,2]
[408381085,1773533446895,-500.0,0.00021864,2]
[408381086,1773533446905,-500.0,0.00021864,2]
[408381087,1773533446915,-2500.0,0.00021917,2]
[408381088,1773533446926,-2500.0,0.00021917,2]
[408381089,1773533446936,-2500.0,0.00021917,2]
[408381090,1773533446946,-2500.0,0.00021917,2]
[408381091,1773533446955,-2500.0,0.00021917,2]
[408381092,1773533446965,-2500.0,0.00021917,2]
[408381093,1773533446975,-1432.60226042,0.00021917,2]
[408381094,1773533446985,-5000.0,0.00021918,2]
[408381095,1773533446995,-151.0,0.00021918,2]
[408381096,1773533447004,-151.0,0.00021918,2]
[408381097,1773533447014,-500.0,0.00021918,2]
[408381098,1773533447024,-150.0,0.00021918,2]
[408381099,1773533447035,-250.58262965,0.00021918,2]
[408381100,1773533447044,-500.0,0.00021918,2]
[408381101,1773533447055,-500.0,0.00021918,2]
[408381102,1773533447064,-500.0,0.00021918,2]
[408381103,1773533447075,-500.0,0.00021973,2]
[408381104,1773533447084,-500.0,0.00021973,2]
[408381105,1773533447094,-354.90199074,0.00021973,2]
[408381106,1773533447103,-500.0,0.00021973,2]
[408381107,1773533447113,-200.37,0.00021983,2]
[408381108,1773533447122,-344242.42861446,0.00022,4]
[408381109,1773533447131,-164.92,0.00022,2]
[408381110,1773533447141,-160.0,0.00022,2]
[408381111,1773533447151,-500.0,0.00022028,2]
[408381112,1773533447160,-500.0,0.00022028,2]
[408381113,1773533447170,-500.0,0.00022083,2]
[408381114,1773533447179,-500.0,0.00022083,2]
[408381115,1773533447189,-6453.0,0.0002212,2]
[408381116,1773533447198,-500.0,0.00022138,2]
[408381117,1773533447207,-500.0,0.00022138,2]
[408381118,1773533447215,-500.0,0.00022192,2]
[408381119,1773533447225,-500.0,0.00022192,2]
[408381120,1773533447234,-200.37,0.00022225,2]
[408381121,1773533447243,-500.0,0.00022247,2]
[408381122,1773533447252,-500.0,0.00022247,2]
[408381123,1773533447260,-500.0,0.00022302,2]
[408381124,1773533447269,-500.0,0.00022302,2]
[408381125,1773533447278,-500.0,0.00022357,2]
[408381126,1773533447287,-500.0,0.00022357,2]
[408381127,1773533447297,-150.0,0.00022399,2]
[408381128,1773533447306,-259.0,0.00022399,2]
[408381129,1773533447316,-500.0,0.00022412,2]
[408381130,1773533447325,-500.0,0.00022412,2]
[408381131,1773533447334,-450.0,0.00022466,2]
[408381132,1773533447343,-500.0,0.00022466,2]
[408381133,1773533447353,-500.0,0.00022521,2]
[408381134,1773533447362,-500.0,0.00022576,2]
[408381135,1773533447371,-500.0,0.00022631,2]
[408381136,1773533447381,-500.0,0.00022686,2]
[408381137,1773533447392,-156.0,0.00022687,3]
[408381138,1773533447410,-288.39513834,0.0002274,2]
[408381139,1773533447424,-2000.0,0.000229,2]
[408381140,1773533447437,-1000.0,0.000229,2]
[408381141,1773533447446,-2400.0,0.00022982,7]
[408381142,1773533447455,-700.0,0.00022982,7]
[408381143,1773533447465,-450.0,0.00023,2]
[408381144,1773533447474,-2821.52,0.00023031,2]
[408381145,1773533447484,-1100.0,0.00023256,7]
[408381146,1773533447493,-361.0,0.00023618,2]
[408381147,1773533447503,-1205.6321,0.00023655,2]
[408381148,1773533447512,-10000.0,0.00023655,2]
[408381149,1773533447522,-334.58,0.00023891,2]
[408381150,1773533447531,-400.0,0.0002397,2]
[408381151,1773533447540,-400.0,0.0002397,2]
[408381152,1773533447549,-400.0,0.0002397,2]
[408381153,1773533447559,-153.99407455,0.00023978,2]
[408381154,1773533447570,-2400.0,0.00024078,7]
[408381155,1773533447579,-700.0,0.00024078,7]
[408381156,1773533447588,-10000.0,0.00024151,2]
[408381157,1773533447598,-176.34195576,0.00024151,2]
[408381158,1773533447612,-1043.0,0.00024153,2]
[408381159,1773533447622,-1260.0,0.00024153,2]
[408381160,1773533447751,-300.0,0.0002425,2]
[408381161,1773533447761,-109452.7058112,0.00024251,2]
[408381162,1773533447774,-3320.02797806,0.00024251,2]
[408381163,1773533447785,-1605.48421122,0.00024251,2]
[408381164,1773533447859,-2923.88393344,0.00024251,2]
[408381165,1773533447870,-1788.0,0.00024251,2]
[408381166,1773533449309,-2500.0,0.00013736,2]
[408381167,1773533449321,-7880.93505865,0.00015724,2]
[408381168,1773533449334,-12264.9759628,0.00024251,2]
[408381169,1773533449349,-447.16000123,0.00024251,2]
[408381170,1773533475819,5000.0,0.00013736,2]
[408381171,1773533493711,-5000.0,0.00013736,2]
[408381172,1773533494264,180.727,0.00013461,2]
[408381173,1773533494290,2306.035,0.00013461,2]
[408381174,1773533497298,-5000.0,0.00013736,2]
[408381175,1773533499289,-5000.0,0.00013736,2]
[408381176,1773533500436,-5000.0,0.00013736,2]
[408381177,1773533501280,-5000.0,0.00013736,2]
[408381178,1773533502227,-5000.0,0.00013736,2]
[408381179,1773533503597,-5000.0,0.00013736,2]
[408381180,1773533538709,-3004.79211187,0.00013726,2]
[408381181,1773533538734,-1995.20788813,0.00013735,2]
[408381182,1773533544628,-1000.0,0.00013735,2]
[408381186,1773533649235,228.965827,0.00013143,2]
[408381187,1773533651991,-200.0,0.000136,4]
[408381188,1773533652021,-250.0,0.00013604,2]
[408381189,1773533652050,-194.57847078,0.00013609,2]
[408381190,1773533652085,-3658.39785037,0.00013618,2]
[408381191,1773533652157,-1394.0573577,0.00013618,2]
[408381192,1773533657944,-276.48071342,0.00013619,2]
[408381193,1773533657976,-1200.0,0.00013635,2]
[408381194,1773533658035,-7047.04857316,0.00013636,2]
[408381195,1773533683072,-500.0,0.00013625,2]
[408381196,1773533683112,-4500.0,0.00013636,2]
[408381197,1773533683934,-5000.0,0.00013636,2]
[408381198,1773533684871,-5000.0,0.00013636,2]
[408381199,1773533685784,-5000.0,0.00013636,2]
[408381200,1773533686765,-5000.0,0.00013636,2]
[408381201,1773533688125,-5000.0,0.00013636,2]
[408381202,1773533701631,238.639475,0.00013386,2]
[408381203,1773533708450,4761.370525,7.945e-05,2]
[408381204,1773533708474,3950.76631,7.945e-05,2]
[408381205,1773533722915,-211.07,0.00012,2]
[408381206,1773533739619,306.43801052,0.00013536,2]
[408381207,1773533793295,577.81584493,0.00013536,2]
[408381208,1773533800778,4115.75614455,0.00013536,2]
[408381209,1773533800799,1428.44874739,0.00013536,2]
[408381210,1773533829316,-538.00213073,0.00013535,2]
[408381211,1773533829347,-538.00213073,0.00013536,2]
[408381212,1773533829378,-538.00213073,0.00013536,2]
[408381213,1773533829410,-300.0,0.00013634,2]
[408381214,1773533829440,-500.0,0.00013635,2]
[408381215,1773533829663,-500.0,0.00013635,2]
[408381216,1773533829695,-624.39601343,0.00013635,2]
[408381217,1773533829731,-235.16872993,0.00013635,2]
[408381218,1773533829767,-564.80576962,0.00013635,2]
[408381219,1773533829801,-500.0,0.00013635,2]
[408381220,1773533829831,-24.05710229,0.00013635,2]
[408381221,1773533830049,-275.14198508,0.00013635,2]
[408381222,1773533831863,-2266.48431264,0.00013536,2]
[408381223,1773533839834,467.04137472,0.00013535,2]
[408381224,1773533840920,-32.95862528,0.00013535,2]
[408381225,1773533841193,-500.0,0.00013635,2]
[408381226,1773533841223,-500.0,0.00013635,2]
[408381227,1773533841252,-183.70646454,0.00013635,2]
[408381228,1773533841286,-500.0,0.00013635,2]
[408381229,1773533841315,-500.0,0.00013635,2]
[408381230,1773533841344,-500.0,0.00013635,2]
[408381231,1773533841374,-500.0,0.00013635,2]
[408381232,1773533841410,-500.0,0.00013635,2]
[408381233,1773533841440,-500.0,0.00013635,2]
[408381234,1773533841470,-344.34211511,0.00013635,2]
[408381235,1773533841504,-443.9128407,0.00013635,2]
[408381236,1773533841730,-56.0871593,0.00013635,2]
[408381237,1773533841765,3746.86128642,0.00013536,2]
[408381238,1773533848965,278.1626,0.0001311,2]
[408381239,1773533859465,-644.11566505,0.000135,2]
[408381240,1773533859496,-500.0,0.00013635,2]
[408381241,1773533859525,-500.0,0.00013635,2]
[408381242,1773533859554,-253.86926902,0.00013635,2]
[408381243,1773533859582,-313.92387934,0.00013635,2]
[408381244,1773533859610,-500.0,0.00013635,2]
[408381245,1773533859639,-500.0,0.00013635,2]
[408381246,1773533859669,-163.11606836,0.00013635,2]
[408381247,1773533859699,-500.0,0.00013635,2]
[408381248,1773533859736,-500.0,0.00013635,2]
[408381249,1773533859770,-500.0,0.00013635,2]
[408381250,1773533860033,-249.96023646,0.00013635,2]
[408381251,1773533865537,-250.03976354,0.00013635,2]
[408381252,1773533865569,-500.0,0.00013635,2]
[408381253,1773533865601,-500.0,0.00013635,2]
[408381254,1773533865633,-500.0,0.00013635,2]
[408381255,1773533865663,-500.0,0.00013635,2]
[408381256,1773533865695,-500.0,0.00013635,2]
[408381257,1773533865729,-500.0,0.00013635,2]
[408381258,1773533865763,-500.0,0.00013635,2]
[408381259,1773533865795,-500.0,0.00013635,2]
[408381260,1773533865824,-500.0,0.00013635,2]
[408381261,1773533865994,-499.93047292,0.00013635,2]
[408381262,1773533868520,-0.06952708,0.00013635,2]
[408381263,1773533868559,-500.0,0.00013635,2]
[408381264,1773533868599,-500.0,0.00013635,2]
[408381265,1773533868639,-500.0,0.00013635,2]
[408381266,1773533868679,-500.0,0.00013635,2]
[408381267,1773533868719,-500.0,0.00013635,2]
[408381268,1773533868763,-500.0,0.00013635,2]
[408381269,1773533868796,-500.0,0.00013635,2]
[408381270,1773533868835,-500.0,0.00013635,2]
[408381271,1773533868873,-500.0,0.00013635,2]
[408381272,1773533869061,-499.87094584,0.00013635,2]
[408381273,1773533869374,-0.12905416,0.00013635,2]
[408381274,1773533880405,338.0,0.00011385,2]
[408381275,1773533881151,338.0,0.00011875,2]
[408381276,1773533881868,338.28857165,0.00012469,2]
[408381277,1773533888347,6816.799535,7.945e-05,2]
[408381278,1773533893917,200.0,0.000131,2]
[408381279,1773534046748,500.0,0.00012938,3]
[408381280,1773534090721,166.66,0.0001221,2]
[408381281,1773534090915,166.66,0.00012467,2]
[408381282,1773534091124,166.66,0.00012724,2]
[408381283,1773534091315,166.66,0.00012982,2]
[408381284,1773534091524,166.66,0.00013239,2]
[408381285,1773534097643,244.282203,0.00013013,2]
[408381286,1773534128979,159.59812925,0.00013435,2]
[408381287,1773534224299,231.7415611,0.00012869,2]
[408381288,1773534224322,5515.7584389,0.00012869,2]
[408381289,1773534259682,1500.0,0.00012751,2]
[408381290,1773534343441,2984.2515611,0.00012804,2]
[408381291,1773534343491,8419.8284389,0.00012804,2]
[408381292,1773534371356,1580.1815611,0.00012804,2]
[408381293,1773534371420,3591.3484389,0.00012804,2]
[408381294,1773534456516,-250.0,0.0001349,2]
[408381295,1773534456582,-166.66,0.00013496,2]
[408381296,1773534456651,-300.0,0.00013533,2]
[408381297,1773534456712,-300.0,0.00013533,2]
[408381298,1773534456775,-300.0,0.00013533,2]
[408381299,1773534456835,-1200.0,0.00013534,2]
[408381300,1773534456899,-300.0,0.00013534,2]
[408381301,1773534456959,-300.0,0.00013534,2]
[408381302,1773534457021,-1200.0,0.00013534,2]
[408381303,1773534457086,-261.0,0.00013535,2]
[408381304,1773534457156,-150.0,0.00013535,2]
[408381305,1773534462599,-159.59812924,0.00013434,2]
[408381306,1773534468506,-159.59812924,0.00013527,2]
[408381307,1773534501569,259.73,0.00012774,2]
[408381308,1773534504259,4740.28,0.00012774,2]
[408381309,1773534504318,10000.01,0.00012774,2]
[408381310,1773534504377,10000.01,0.00012774,2]
[408381311,1773534504437,10000.01,0.00012774,2]
[408381312,1773534504487,6756.97,0.00012774,2]
[408381313,1773534526364,10000.0,0.00012748,2]
[408381314,1773534531167,531.075713,0.00012953,2]
[408381315,1773534566310,-200.0,0.000133,2]
[408381316,1773534566332,-3240.0,0.00013425,2]
[408381317,1773534566353,-1200.0,0.00013534,2]
[408381318,1773534566375,-316.55717164,0.00013535,2]
[408381319,1773534568217,5000.01,0.00013233,2]
[408381320,1773534576862,335.48,0.0001329,2]
[408381321,1773534583771,2704.42,0.00012767,2]
[408381322,1773534583980,2704.42,0.00013086,2]
[408381329,1773534631859,-260.0,0.00013405,2]
[408381330,1773534631869,-20.63250004,0.00013405,2]
[408381331,1773534631880,-768.43955205,0.00013405,2]
[408381332,1773534631891,-267.2298393,0.00013405,2]
[408381333,1773534631905,-1648.11810861,0.00013405,2]
[408381334,1773534631914,-300.0,0.00013525,2]
[408381335,1773534631924,-300.0,0.00013526,2]
[408381336,1773534631934,-300.0,0.00013526,2]
[408381337,1773534631943,-1200.0,0.00013526,2]
[408381338,1773534631952,-18.48590568,0.00013526,2]
[408381339,1773534631964,-281.51409432,0.00013526,2]
[408381340,1773534631973,-150.0,0.00013526,2]
[408381341,1773534631982,-82425.27538002,0.00013527,2]
[408381342,1773534631993,-33784.333278,0.00013527,2]
[408381343,1773534632009,-344.81,0.00013527,2]
[408381344,1773534632023,-2800.96661148,0.00013527,2]
[408381345,1773534632035,-259084.4836305,0.00013527,2]
[408381347,1773534632045,-13846.91409071,0.00013535,2]
[408381349,1773534632056,-20568.0507,0.00013536,2]
[408381351,1773534632065,-1809.07,0.00013536,2]
[408381352,1773534632076,-6809.89028522,0.00013536,2]
[408381353,1773534632086,-1000.0,0.00013572,2]
[408381354,1773534632096,-500.0,0.00013573,2]
[408381355,1773534632105,-500.0,0.00013573,2]
[408381356,1773534632115,-500.0,0.00013573,2]
[408381357,1773534632124,-500.0,0.00013573,2]
[408381358,1773534632134,-167.24524863,0.00013573,2]
[408381359,1773534632143,-500.0,0.00013573,2]
[408381360,1773534632154,-500.0,0.00013573,2]
[408381361,1773534632164,-500.0,0.00013573,2]
[408381362,1773534632173,-456.67098084,0.00013573,2]
[408381364,1773534632183,-500.0,0.00013573,2]
[408381366,1773534632192,-164.047863,0.00013573,2]
[408381368,1773534632202,-500.81300917,0.00013573,2]
[408381370,1773534632212,-500.64031486,0.00013573,2]
[408381372,1773534632221,-500.0,0.00013573,2]
[408381374,1773534632231,-500.0,0.00013573,2]
[408381376,1773534632240,-500.0,0.00013573,2]
[408381377,1773534632248,-500.0,0.00013573,2]
[408381378,1773534632258,-500.0,0.00013573,2]
[408381379,1773534632267,-219.54284611,0.00013573,2]
[408381380,1773534632275,-500.0,0.00013573,2]
[408381381,1773534632284,-500.0,0.00013573,2]
[408381382,1773534632293,-500.0,0.00013573,2]
[408381383,1773534632303,-1495.89,0.00013573,2]
[408381384,1773534632311,-400.0,0.000136,4]
[408381385,1773534632320,-248.33938411,0.00013626,2]
[408381386,1773534632329,-1207.86,0.00013627,2]
[408381387,1773534632337,-313.56,0.00013627,2]
[408381388,1773534632346,-9999.99,0.00013627,2]
[408381389,1773534632356,-3429.09,0.00013627,2]
[408381390,1773534632365,-150.99,0.00013627,2]
[408381391,1773534632374,-9999.99,0.00013627,2]
[408381392,1773534632383,-200.0,0.00013627,2]
[408381393,1773534632392,-500.0,0.00013627,2]
[408381394,1773534632401,-500.0,0.00013627,2]
[408381395,1773534632410,-229.89616237,0.00013627,2]
[408381396,1773534632419,-151.0,0.00013627,2]
[408381397,1773534632428,-151.0,0.00013627,2]
[408381398,1773534632437,-151.0,0.00013627,2]
[408381399,1773534632446,-151.0,0.00013627,2]
[408381400,1773534632455,-151.0,0.00013627,2]
[408381401,1773534632464,-151.0,0.00013627,2]
[408381402,1773534632473,-151.0,0.00013627,2]
[408381403,1773534632483,-151.0,0.00013627,2]
[408381404,1773534632492,-151.0,0.00013627,2]
[408381405,1773534632501,-151.0,0.00013627,2]
[408381409,1773534632706,-151.0,0.00013627,2]
[408381412,1773534632717,-151.0,0.00013627,2]
[408381414,1773534632726,-151.0,0.00013627,2]
[408381415,1773534632735,-151.0,0.00013627,2]
[408381417,1773534632745,-151.0,0.00013627,2]
[408381419,1773534632754,-151.0,0.00013627,2]
[408381421,1773534632763,-151.0,0.00013627,2]
[408381423,1773534632772,-151.0,0.00013627,2]
[408381425,1773534632781,-151.0,0.00013627,2]
[408381427,1773534632790,-151.0,0.00013627,2]
[408381429,1773534632799,-151.0,0.00013627,2]
[408381431,1773534632809,-151.0,0.00013627,2]
[408381433,1773534632818,-151.0,0.00013627,2]
[408381435,1773534632827,-151.0,0.00013627,2]
[408381437,1773534632837,-151.0,0.00013627,2]
[408381439,1773534632846,-151.0,0.00013627,2]
[408381441,1773534632855,-166.93398854,0.00013627,2]
[408381442,1773534632865,-1844.828,0.00013634,2]
[408381443,1773534632874,-180.72734667,0.00013634,2]
[408381444,1773534632883,-9999.99,0.00013634,2]
[408381445,1773534632892,-299.99,0.00013634,2]
[408381446,1773534632902,-9999.99,0.00013634,2]
[408381447,1773534632911,-4600.47690975,0.00013634,2]
[408381448,1773534632924,-4017.84705921,0.00013634,2]
[408381449,1773534632935,-20733.46603104,0.00013634,2]
[408381450,1773534632944,-1900.01,0.00013634,2]
[408381451,1773534632953,-2291.02,0.00013634,2]
[408381452,1773534632962,-150.99,0.00013634,2]
[408381453,1773534632972,-499.99,0.00013634,2]
[408381454,1773534632981,-983.1,0.00013634,2]
[408381455,1773534632990,-500.0,0.00013635,2]
[408381456,1773534632999,-500.0,0.00013635,2]
[408381457,1773534633009,-245.36403873,0.00013635,2]
[408381458,1773534633019,-164.61811095,0.00013635,2]
[408381459,1773534633028,-155.51502406,0.00013635,2]
[408381460,1773534633037,-500.0,0.00013635,2]
[408381461,1773534633046,-1000.0,0.00013635,2]
[408381462,1773534633055,-222.29037725,0.00013635,2]
[408381463,1773534633065,-239.96667002,0.00013635,2]
[408381464,1773534633074,-67977.24753455,0.00013636,2]
[408381465,1773534633088,-20557.89475208,0.00013636,2]
[408381472,1773534638667,-500.0,0.00013526,2]
[408381473,1773534638677,-500.0,0.00013526,2]
[408381474,1773534638686,-500.0,0.00013526,2]
[408381475,1773534638697,-500.0,0.00013526,2]
[408381476,1773534638706,-371.59356835,0.00013526,2]
[408381477,1773534638715,-434.79593799,0.00013526,2]
[408381490,1773534638890,-65.20406201,0.00013526,2]
[408381493,1773534638900,-500.0,0.00013526,2]
[408381496,1773534638909,-500.0,0.00013526,2]
[408381499,1773534638920,-500.0,0.00013526,2]
[408381501,1773534638930,-500.0,0.00013526,2]
[408381504,1773534638940,-500.0,0.00013526,2]
[408381508,1773534638953,-500.0,0.00013526,2]
[408381510,1773534638962,-500.0,0.00013526,2]
[408381512,1773534638972,-500.0,0.00013526,2]
[408381514,1773534638982,-500.0,0.00013526,2]
[408381516,1773534638991,-500.0,0.00013526,2]
[408381518,1773534639001,-500.0,0.00013526,2]
[408381519,1773534639010,-500.0,0.00013526,2]
[408381520,1773534639020,-500.0,0.00013526,2]
[408381521,1773534639030,-500.0,0.00013526,2]
[408381522,1773534639040,-500.0,0.00013526,2]
[408381523,1773534639049,-500.0,0.00013526,2]
[408381524,1773534639058,-500.0,0.00013526,2]
[408381525,1773534639068,-500.0,0.00013526,2]
[408381526,1773534639080,-500.0,0.00013526,2]
[408381527,1773534639091,-500.0,0.00013526,2]
[408381528,1773534639100,-500.0,0.00013526,2]
[408381529,1773534639110,-500.0,0.00013526,2]
[408381530,1773534639119,-500.0,0.00013526,2]
[408381531,1773534639129,-479.22076852,0.00013526,2]
[408381532,1773534639138,-500.0,0.00013526,2]
[408381533,1773534639147,-500.0,0.00013526,2]
[408381534,1773534639157,-500.0,0.00013526,2]
[408381535,1773534639166,-500.0,0.00013526,2]
[408381536,1773534639176,-500.0,0.00013526,2]
[408381537,1773534639186,-500.0,0.00013526,2]
[408381538,1773534639196,-500.0,0.00013526,2]
[408381539,1773534639209,-500.0,0.00013526,2]
[408381540,1773534639218,-500.0,0.00013526,2]
[408381541,1773534639228,-500.0,0.00013526,2]
[408381542,1773534639237,-500.0,0.00013526,2]
[408381543,1773534639248,-5090.13240954,0.00013536,2]
[408381544,1773534639259,-2374917.80914021,0.00013636,2]
[408381545,1773534639268,-221.30371165,0.00013636,2]
[408381546,1773534639277,-602.46478951,0.00013636,2]
[408381547,1773534639287,-500.0,0.00013673,2]
[408381548,1773534639296,-619.71855644,0.00013673,2]
[408381549,1773534639306,-500.0,0.00013673,2]
[408381550,1773534639316,-500.0,0.00013698,2]
[408381551,1773534639325,-500.0,0.00013698,2]
[408381552,1773534639335,-500.0,0.00013698,2]
[408381553,1773534639345,-500.0,0.00013698,2]
[408381554,1773534639355,-345.99667597,0.00013698,2]
[408381555,1773534639365,-500.0,0.00013698,2]
[408381556,1773534639375,-500.0,0.00013698,2]
[408381557,1773534639384,-500.0,0.00013698,2]
[408381558,1773534639394,-500.0,0.00013698,2]
[408381559,1773534639403,-500.0,0.00013698,2]
[408381560,1773534639415,-500.0,0.00013698,2]
[408381561,1773534639424,-500.0,0.00013698,2]
[408381562,1773534639434,-500.0,0.00013698,2]
[408381563,1773534639444,-500.0,0.00013698,2]
[408381564,1773534639454,-500.0,0.00013698,2]
[408381565,1773534639464,-500.0,0.00013698,2]
[408381566,1773534639474,-500.0,0.00013698,2]
[408381567,1773534639483,-500.0,0.00013698,2]
[408381568,1773534639492,-500.0,0.00013698,2]
[408381569,1773534639501,-500.0,0.00013698,2]
[408381570,1773534639511,-500.0,0.00013698,2]
[408381571,1773534639520,-800.0,0.000137,5]
[408381572,1773534639530,-2704.42,0.00013725,2]
[408381573,1773534639539,-500.0,0.00013735,2]
[408381574,1773534639549,-500.0,0.00013735,2]
[408381575,1773534639558,-500.0,0.00013735,2]
[408381576,1773534639568,-500.0,0.00013735,2]
[408381577,1773534639578,-500.0,0.00013735,2]
[408381578,1773534639587,-500.0,0.00013735,2]
[408381579,1773534639596,-500.0,0.00013735,2]
[408381580,1773534639605,-32952.2722,0.00013736,2]
[408381581,1773534639615,-1000.0,0.00013736,2]
[408381582,1773534639624,-500.0,0.00013773,2]
[408381583,1773534639633,-502.14581261,0.00013773,2]
[408381584,1773534639643,-324.90506923,0.00013773,2]
[408381585,1773534639653,-500.51361903,0.00013773,2]
[408381586,1773534639663,-500.0,0.00013773,2]
[408381587,1773534639673,-482.7910397,0.00013773,2]
[408381588,1773534639683,-500.0,0.00013773,2]
[408381589,1773534639693,-403.32108496,0.00013773,2]
[408381590,1773534639703,-273.0,0.0001379,2]